[Event "Titled Tuesday Blitz May 2 Early 2023"]
[White "Jovic, Stanoje"]
[Black "Todorovic, Bojan"]
[WhiteFideId "905020"]
[BlackFideId "917087"]
[WhiteElo "2236"]
[BlackElo "2266"]
[Result "1-0"]
[Round "10"]
[TimeControl "180+2"]
[Date "2023.05.03"]
[WhiteClock "0:00:00"]
[BlackClock "0:00:00"]

1. c4 {[%clk 0:00:01]}  g6 {[%clk 0:00:01]} 2. g3 {[%clk 0:00:01]}  Bg7 {[%clk 0:00:01]} 3. Bg2 {[%clk 0:00:01]}  c6 {[%clk 0:00:01]} 4. Nc3 {[%clk 0:00:01]}  Nf6 {[%clk 0:00:01]} 5. Nf3 {[%clk 0:00:01]}  O-O {[%clk 0:00:01]} 6. O-O {[%clk 0:00:01]}  d6 {[%clk 0:00:01]} 7. d3 {[%clk 0:00:01]}  a6 {[%clk 0:00:01]} 8. Rb1 {[%clk 0:00:01]}  b5 {[%clk 0:00:01]} 9. b4 {[%clk 0:00:01]}  Nbd7 {[%clk 0:00:01]} 10. Nd4 {[%clk 0:00:01]}  c5 {[%clk 0:00:01]} 11. Nc6 {[%clk 0:00:01]}  Qe8 {[%clk 0:00:01]} 12. Nxe7+ {[%clk 0:00:01]}  Qxe7 {[%clk 0:00:01]} 13. Bxa8 {[%clk 0:00:01]}  cxb4 {[%clk 0:00:01]} 14. Nd5 {[%clk 0:00:01]}  Qd8 {[%clk 0:00:01]} 15. Rxb4 {[%clk 0:00:01]}  bxc4 {[%clk 0:00:01]} 16. dxc4 {[%clk 0:00:01]}  a5 {[%clk 0:00:01]} 17. Rb1 {[%clk 0:00:01]}  Ba6 {[%clk 0:00:01]} 18. Nxf6+ {[%clk 0:00:01]}  Nxf6 {[%clk 0:00:01]} 19. Bd5 {[%clk 0:00:01]}  Nxd5 {[%clk 0:00:01]} 20. Qxd5 {[%clk 0:00:01]}  Re8 {[%clk 0:00:00]} 21. Be3 {[%clk 0:00:01]}  Qc7 {[%clk 0:00:00]} 22. Rfc1 {[%clk 0:00:01]}  Bc8 {[%clk 0:00:00]} 23. Rb6 {[%clk 0:00:01]}  Rxe3 {[%clk 0:00:00]} 24. Rc6 {[%clk 0:00:01]}  Qd8 {[%clk 0:00:00]} 25. Rxc8 {[%clk 0:00:01]}  Qxc8 {[%clk 0:00:00]} 26. fxe3 {[%clk 0:00:01]}  Qg4 {[%clk 0:00:00]} 27. Qa8+ {[%clk 0:00:00]}  Bf8 {[%clk 0:00:00]} 28. Qf3 {[%clk 0:00:00]}  Qe6 {[%clk 0:00:00]} 29. e4 {[%clk 0:00:00]}  h5 {[%clk 0:00:00]} 30. h4 {[%clk 0:00:00]}  Bg7 {[%clk 0:00:00]} 31. Kg2 {[%clk 0:00:00]}  Bd4 {[%clk 0:00:00]} 32. Qd3 {[%clk 0:00:00]}  Bc5 {[%clk 0:00:00]} 33. Rb1 {[%clk 0:00:00]}  Qe5 {[%clk 0:00:00]} 34. e3 {[%clk 0:00:00]}  g5 {[%clk 0:00:00]} 35. Qd5 {[%clk 0:00:00]} 1-0


[Site "https://www.chess.com"]

[Event "Titled Tuesday Blitz May 2 Early 2023"]
[White "Karamsetty, Jeevan"]
[Black "Singh, Arvinder Preet"]
[WhiteFideId "2025337"]
[BlackFideId "5013240"]
[WhiteElo "2111"]
[BlackElo "2124"]
[Result "0-1"]
[Round "10"]
[TimeControl "180+2"]
[Date "2023.05.03"]
[WhiteClock "0:00:00"]
[BlackClock "0:00:00"]

1. e4 {[%clk 0:00:01]}  c5 {[%clk 0:00:01]} 2. Nc3 {[%clk 0:00:01]}  Nc6 {[%clk 0:00:01]} 3. Bb5 {[%clk 0:00:01]}  Nd4 {[%clk 0:00:01]} 4. Bc4 {[%clk 0:00:01]}  e6 {[%clk 0:00:01]} 5. Nge2 {[%clk 0:00:01]}  a6 {[%clk 0:00:01]} 6. a4 {[%clk 0:00:01]}  Nf6 {[%clk 0:00:01]} 7. O-O {[%clk 0:00:01]}  d5 {[%clk 0:00:01]} 8. exd5 {[%clk 0:00:01]}  exd5 {[%clk 0:00:01]} 9. Ba2 {[%clk 0:00:01]}  Nxe2+ {[%clk 0:00:01]} 10. Qxe2+ {[%clk 0:00:01]}  Be7 {[%clk 0:00:01]} 11. Re1 {[%clk 0:00:01]}  Be6 {[%clk 0:00:01]} 12. d3 {[%clk 0:00:01]}  O-O {[%clk 0:00:01]} 13. Bf4 {[%clk 0:00:01]}  Re8 {[%clk 0:00:01]} 14. Qf3 {[%clk 0:00:01]}  Qd7 {[%clk 0:00:01]} 15. Be5 {[%clk 0:00:01]}  Bg4 {[%clk 0:00:01]} 16. Qf4 {[%clk 0:00:01]}  Nh5 {[%clk 0:00:01]} 17. Qd2 {[%clk 0:00:01]}  Bf6 {[%clk 0:00:00]} 18. Bxf6 {[%clk 0:00:00]}  Nxf6 {[%clk 0:00:00]} 19. Qg5 {[%clk 0:00:00]}  Be6 {[%clk 0:00:00]} 20. Rad1 {[%clk 0:00:00]}  h6 {[%clk 0:00:00]} 21. Qh4 {[%clk 0:00:00]}  b5 {[%clk 0:00:00]} 22. b4 {[%clk 0:00:00]}  d4 {[%clk 0:00:00]} 23. Bxe6 {[%clk 0:00:00]}  Rxe6 {[%clk 0:00:00]} 24. Ne4 {[%clk 0:00:00]}  Nxe4 {[%clk 0:00:00]} 25. Rxe4 {[%clk 0:00:00]}  Rxe4 {[%clk 0:00:00]} 26. Qxe4 {[%clk 0:00:00]}  Re8 {[%clk 0:00:00]} 27. Qf4 {[%clk 0:00:00]}  cxb4 {[%clk 0:00:00]} 28. axb5 {[%clk 0:00:00]}  a5 {[%clk 0:00:00]} 29. h3 {[%clk 0:00:00]}  Qxb5 {[%clk 0:00:00]} 30. Qxd4 {[%clk 0:00:00]}  a4 {[%clk 0:00:00]} 31. Rb1 {[%clk 0:00:00]}  Rb8 {[%clk 0:00:00]} 32. Qb2 {[%clk 0:00:00]}  a3 {[%clk 0:00:00]} 33. Qb3 {[%clk 0:00:00]}  Qc5 {[%clk 0:00:00]} 34. c3 {[%clk 0:00:00]}  a2 {[%clk 0:00:00]} 35. Qxa2 {[%clk 0:00:00]}  Qxc3 {[%clk 0:00:00]} 36. Rb3 {[%clk 0:00:00]}  Qc1+ {[%clk 0:00:00]} 37. Kh2 {[%clk 0:00:00]}  Qf4+ {[%clk 0:00:00]} 38. g3 {[%clk 0:00:00]}  Qd4 {[%clk 0:00:00]} 39. Kg2 {[%clk 0:00:00]}  Re8 {[%clk 0:00:00]} 40. Qb2 {[%clk 0:00:00]}  Qd5+ {[%clk 0:00:00]} 41. f3 {[%clk 0:00:00]}  Re1 {[%clk 0:00:00]} 42. Rxb4 {[%clk 0:00:00]}  Qc5 {[%clk 0:00:00]} 43. Rd4 {[%clk 0:00:00]}  Rc1 {[%clk 0:00:00]} 44. Rc4 {[%clk 0:00:00]}  Qg1# {[%clk 0:00:00]} 0-1


[Site "https://www.chess.com"]

[Event "Titled Tuesday Blitz May 2 Early 2023"]
[White "Nikologorskiy, Konstantin"]
[Black "Dinu, Dumitru-Daniel"]
[WhiteFideId "24111708"]
[BlackFideId "1208403"]
[WhiteElo "2293"]
[BlackElo "2240"]
[Result "1-0"]
[Round "10"]
[TimeControl "180+2"]
[Date "2023.05.03"]
[WhiteClock "0:00:00"]
[BlackClock "0:00:00"]

1. d4 {[%clk 0:00:01]}  Nf6 {[%clk 0:00:01]} 2. c4 {[%clk 0:00:01]}  e6 {[%clk 0:00:01]} 3. Nf3 {[%clk 0:00:01]}  Bb4+ {[%clk 0:00:01]} 4. Bd2 {[%clk 0:00:01]}  a5 {[%clk 0:00:01]} 5. g3 {[%clk 0:00:01]}  b6 {[%clk 0:00:01]} 6. Bg2 {[%clk 0:00:01]}  Bb7 {[%clk 0:00:01]} 7. O-O {[%clk 0:00:01]}  O-O {[%clk 0:00:01]} 8. Bg5 {[%clk 0:00:01]}  Be7 {[%clk 0:00:01]} 9. Nc3 {[%clk 0:00:01]}  d6 {[%clk 0:00:01]} 10. Qc2 {[%clk 0:00:01]}  Nbd7 {[%clk 0:00:01]} 11. e4 {[%clk 0:00:01]}  e5 {[%clk 0:00:01]} 12. Rfe1 {[%clk 0:00:01]}  h6 {[%clk 0:00:01]} 13. Be3 {[%clk 0:00:01]}  Ng4 {[%clk 0:00:01]} 14. Bd2 {[%clk 0:00:01]}  exd4 {[%clk 0:00:01]} 15. Nxd4 {[%clk 0:00:01]}  Bf6 {[%clk 0:00:01]} 16. Nf5 {[%clk 0:00:01]}  Nge5 {[%clk 0:00:01]} 17. Nd5 {[%clk 0:00:01]}  Bxd5 {[%clk 0:00:01]} 18. cxd5 {[%clk 0:00:01]}  Nc5 {[%clk 0:00:01]} 19. f4 {[%clk 0:00:01]}  Ned3 {[%clk 0:00:01]} 20. Reb1 {[%clk 0:00:01]}  Nb4 {[%clk 0:00:01]} 21. Qc4 {[%clk 0:00:01]}  Nbd3 {[%clk 0:00:01]} 22. Bf1 {[%clk 0:00:01]}  Nxb2 {[%clk 0:00:01]} 23. Qe2 {[%clk 0:00:00]}  Nba4 {[%clk 0:00:01]} 24. e5 {[%clk 0:00:00]}  dxe5 {[%clk 0:00:01]} 25. fxe5 {[%clk 0:00:00]}  Bg5 {[%clk 0:00:01]} 26. Qg4 {[%clk 0:00:00]}  Nd7 {[%clk 0:00:00]} 27. Bf4 {[%clk 0:00:00]}  Nc3 {[%clk 0:00:00]} 28. h4 {[%clk 0:00:00]}  Nxb1 {[%clk 0:00:00]} 29. hxg5 {[%clk 0:00:00]}  hxg5 {[%clk 0:00:00]} 30. Rxb1 {[%clk 0:00:00]}  f6 {[%clk 0:00:00]} 31. e6 {[%clk 0:00:00]}  Re8 {[%clk 0:00:00]} 32. exd7 {[%clk 0:00:00]}  Re4 {[%clk 0:00:00]} 33. Bd3 {[%clk 0:00:00]}  Rb4 {[%clk 0:00:00]} 34. Rxb4 {[%clk 0:00:00]}  axb4 {[%clk 0:00:00]} 35. Be3 {[%clk 0:00:00]}  Ra3 {[%clk 0:00:00]} 36. Qe4 {[%clk 0:00:00]}  Qxd7 {[%clk 0:00:00]} 37. Nd4 {[%clk 0:00:00]}  f5 {[%clk 0:00:00]} 38. Nxf5 {[%clk 0:00:00]}  Rxa2 {[%clk 0:00:00]} 39. Nd4 {[%clk 0:00:00]}  Ra1+ {[%clk 0:00:00]} 40. Kg2 {[%clk 0:00:00]}  Ra2+ {[%clk 0:00:00]} 41. Bf2 {[%clk 0:00:00]}  Kf8 {[%clk 0:00:00]} 42. Ne6+ {[%clk 0:00:00]}  Kg8 {[%clk 0:00:00]} 43. Qh7+ {[%clk 0:00:00]}  Kf7 {[%clk 0:00:00]} 44. Qxg7+ {[%clk 0:00:00]}  Ke8 {[%clk 0:00:00]} 45. Qf8# {[%clk 0:00:00]} 1-0


[Site "https://www.chess.com"]

[Event "Titled Tuesday Blitz May 2 Early 2023"]
[White "Danielyan, Vahe"]
[Black "Gatterer, Florian"]
[WhiteFideId "13304828"]
[BlackFideId "811688"]
[WhiteElo "2423"]
[BlackElo "2221"]
[Result "1-0"]
[Round "10"]
[TimeControl "180+2"]
[Date "2023.05.03"]
[WhiteClock "0:00:00"]
[BlackClock "0:00:00"]

1. d4 {[%clk 0:00:01]}  g6 {[%clk 0:00:01]} 2. c4 {[%clk 0:00:01]}  Bg7 {[%clk 0:00:01]} 3. Nc3 {[%clk 0:00:01]}  Nf6 {[%clk 0:00:01]} 4. e4 {[%clk 0:00:01]}  d6 {[%clk 0:00:01]} 5. h3 {[%clk 0:00:01]}  O-O {[%clk 0:00:01]} 6. Be3 {[%clk 0:00:01]}  c5 {[%clk 0:00:01]} 7. Nf3 {[%clk 0:00:01]}  Qa5 {[%clk 0:00:01]} 8. Bd3 {[%clk 0:00:01]}  cxd4 {[%clk 0:00:01]} 9. Nxd4 {[%clk 0:00:01]}  Nc6 {[%clk 0:00:01]} 10. O-O {[%clk 0:00:01]}  Nxd4 {[%clk 0:00:01]} 11. Bxd4 {[%clk 0:00:01]}  Be6 {[%clk 0:00:01]} 12. Qd2 {[%clk 0:00:01]}  Nd7 {[%clk 0:00:01]} 13. Bxg7 {[%clk 0:00:01]}  Kxg7 {[%clk 0:00:01]} 14. Rad1 {[%clk 0:00:01]}  Nc5 {[%clk 0:00:01]} 15. Be2 {[%clk 0:00:01]}  f6 {[%clk 0:00:01]} 16. f4 {[%clk 0:00:01]}  Bf7 {[%clk 0:00:01]} 17. f5 {[%clk 0:00:01]}  g5 {[%clk 0:00:01]} 18. Kh1 {[%clk 0:00:01]}  Rac8 {[%clk 0:00:01]} 19. Rfe1 {[%clk 0:00:01]}  Nd7 {[%clk 0:00:01]} 20. b3 {[%clk 0:00:01]}  Ne5 {[%clk 0:00:01]} 21. Bf1 {[%clk 0:00:01]}  a6 {[%clk 0:00:00]} 22. Nd5 {[%clk 0:00:01]}  Qxd2 {[%clk 0:00:00]} 23. Rxd2 {[%clk 0:00:01]}  Bxd5 {[%clk 0:00:00]} 24. exd5 {[%clk 0:00:01]}  a5 {[%clk 0:00:00]} 25. a4 {[%clk 0:00:01]}  b6 {[%clk 0:00:00]} 26. Kg1 {[%clk 0:00:01]}  Rc7 {[%clk 0:00:00]} 27. Kf2 {[%clk 0:00:01]}  h5 {[%clk 0:00:00]} 28. g3 {[%clk 0:00:01]}  Kh6 {[%clk 0:00:00]} 29. Be2 {[%clk 0:00:01]}  Rg8 {[%clk 0:00:00]} 30. Rd4 {[%clk 0:00:00]}  Rgc8 {[%clk 0:00:00]} 31. Ke3 {[%clk 0:00:00]}  Ra8 {[%clk 0:00:00]} 32. Kd2 {[%clk 0:00:00]}  Rca7 {[%clk 0:00:00]} 33. Bd1 {[%clk 0:00:00]}  Rc8 {[%clk 0:00:00]} 34. Kc3 {[%clk 0:00:00]}  Rac7 {[%clk 0:00:00]} 35. Kb2 {[%clk 0:00:00]}  Rc5 {[%clk 0:00:00]} 36. Re2 {[%clk 0:00:00]}  R5c7 {[%clk 0:00:00]} 37. Rc2 {[%clk 0:00:00]}  Rc5 {[%clk 0:00:00]} 38. Be2 {[%clk 0:00:00]}  R5c7 {[%clk 0:00:00]} 39. Ka3 {[%clk 0:00:00]}  Rb8 {[%clk 0:00:00]} 40. Rd1 {[%clk 0:00:00]}  Rc5 {[%clk 0:00:00]} 41. Rb1 {[%clk 0:00:00]}  Rbc8 {[%clk 0:00:00]} 42. Rbc1 {[%clk 0:00:00]}  R8c7 {[%clk 0:00:00]} 43. Kb2 {[%clk 0:00:00]}  Rc8 {[%clk 0:00:00]} 44. Rc3 {[%clk 0:00:00]}  R8c7 {[%clk 0:00:00]} 45. Re1 {[%clk 0:00:00]}  Rc8 {[%clk 0:00:00]} 46. Re3 {[%clk 0:00:00]}  R8c7 {[%clk 0:00:00]} 47. Ka3 {[%clk 0:00:00]}  Rc8 {[%clk 0:00:00]} 48. Re4 {[%clk 0:00:00]}  R8c7 {[%clk 0:00:00]} 49. Rd4 {[%clk 0:00:00]}  Rc8 {[%clk 0:00:00]} 50. Rc1 {[%clk 0:00:00]}  R8c7 {[%clk 0:00:00]} 51. Rc3 {[%clk 0:00:00]}  Rc8 {[%clk 0:00:00]} 52. Re3 {[%clk 0:00:00]}  R8c7 {[%clk 0:00:00]} 53. Rd1 {[%clk 0:00:00]}  Rc8 {[%clk 0:00:00]} 54. Rb1 {[%clk 0:00:00]}  R8c7 {[%clk 0:00:00]} 55. Re4 {[%clk 0:00:00]}  Rc8 {[%clk 0:00:00]} 56. Ka2 {[%clk 0:00:00]}  R8c7 {[%clk 0:00:00]} 57. b4 {[%clk 0:00:00]}  axb4 {[%clk 0:00:00]} 58. Rxb4 {[%clk 0:00:00]}  Ra7 {[%clk 0:00:00]} 59. Kb3 {[%clk 0:00:00]}  Rca5 {[%clk 0:00:00]} 60. Bd1 {[%clk 0:00:00]}  R7a6 {[%clk 0:00:00]} 61. Re3 {[%clk 0:00:00]}  Rc5 {[%clk 0:00:00]} 62. Be2 {[%clk 0:00:00]}  g4 {[%clk 0:00:00]} 63. h4 {[%clk 0:00:00]}  Rca5 {[%clk 0:00:00]} 64. Bd1 {[%clk 0:00:00]}  Rc5 {[%clk 0:00:00]} 65. Re4 {[%clk 0:00:00]}  Rca5 {[%clk 0:00:00]} 66. Be2 {[%clk 0:00:00]}  Rc5 {[%clk 0:00:00]} 67. Rb5 {[%clk 0:00:00]}  Rxb5+ {[%clk 0:00:00]} 68. cxb5 {[%clk 0:00:00]}  Ra7 {[%clk 0:00:00]} 69. Re3 {[%clk 0:00:00]}  Rc7 {[%clk 0:00:00]} 70. Rc3 {[%clk 0:00:00]}  Rxc3+ {[%clk 0:00:00]} 71. Kxc3 {[%clk 0:00:00]}  Nd7 {[%clk 0:00:00]} 72. Kb4 {[%clk 0:00:00]} 1-0


[Site "https://www.chess.com"]

[Event "Titled Tuesday Blitz May 2 Early 2023"]
[White "Demin, Vladimir"]
[Black "Fernandez Siles, Luis"]
[WhiteFideId "4167457"]
[BlackFideId "2209420"]
[WhiteElo "2430"]
[BlackElo "2195"]
[Result "1-0"]
[Round "10"]
[TimeControl "180+2"]
[Date "2023.05.03"]
[WhiteClock "0:00:01"]
[BlackClock "0:00:00"]

1. d4 {[%clk 0:00:01]}  Nf6 {[%clk 0:00:01]} 2. Nc3 {[%clk 0:00:01]}  d5 {[%clk 0:00:01]} 3. Bf4 {[%clk 0:00:01]}  c5 {[%clk 0:00:01]} 4. e4 {[%clk 0:00:01]}  Nxe4 {[%clk 0:00:01]} 5. Nxe4 {[%clk 0:00:01]}  dxe4 {[%clk 0:00:01]} 6. dxc5 {[%clk 0:00:01]}  Qa5+ {[%clk 0:00:01]} 7. c3 {[%clk 0:00:01]}  Qxc5 {[%clk 0:00:01]} 8. Qa4+ {[%clk 0:00:01]}  Nc6 {[%clk 0:00:01]} 9. Qxe4 {[%clk 0:00:01]}  e5 {[%clk 0:00:01]} 10. Nf3 {[%clk 0:00:01]}  f6 {[%clk 0:00:01]} 11. Be3 {[%clk 0:00:01]}  Qa5 {[%clk 0:00:01]} 12. Bc4 {[%clk 0:00:01]}  Bd7 {[%clk 0:00:01]} 13. O-O {[%clk 0:00:01]}  Be7 {[%clk 0:00:01]} 14. a4 {[%clk 0:00:01]}  f5 {[%clk 0:00:01]} 15. Qd5 {[%clk 0:00:01]}  Qxd5 {[%clk 0:00:01]} 16. Bxd5 {[%clk 0:00:01]}  Bf6 {[%clk 0:00:01]} 17. Bc5 {[%clk 0:00:01]}  b6 {[%clk 0:00:01]} 18. Ba3 {[%clk 0:00:01]}  O-O-O {[%clk 0:00:01]} 19. Rfd1 {[%clk 0:00:01]}  e4 {[%clk 0:00:01]} 20. Nd2 {[%clk 0:00:01]}  Ne5 {[%clk 0:00:01]} 21. Nc4 {[%clk 0:00:01]}  Nxc4 {[%clk 0:00:01]} 22. Bxc4 {[%clk 0:00:01]}  g6 {[%clk 0:00:01]} 23. Ba6+ {[%clk 0:00:01]}  Kb8 {[%clk 0:00:00]} 24. Bd6+ {[%clk 0:00:01]}  Ka8 {[%clk 0:00:00]} 25. a5 {[%clk 0:00:01]}  b5 {[%clk 0:00:00]} 26. Bc7 {[%clk 0:00:01]}  Bc6 {[%clk 0:00:00]} 27. Bxd8 {[%clk 0:00:01]}  Rxd8 {[%clk 0:00:00]} 28. Rxd8+ {[%clk 0:00:01]}  Bxd8 {[%clk 0:00:00]} 29. Rd1 {[%clk 0:00:01]}  Bxa5 {[%clk 0:00:00]} 30. Rd6 {[%clk 0:00:01]}  Bb7 {[%clk 0:00:00]} 31. Bxb5 {[%clk 0:00:01]}  a6 {[%clk 0:00:00]} 32. Bc4 {[%clk 0:00:01]}  f4 {[%clk 0:00:00]} 33. Bxa6 {[%clk 0:00:01]}  e3 {[%clk 0:00:00]} 34. Bxb7+ {[%clk 0:00:01]}  Kxb7 {[%clk 0:00:00]} 35. fxe3 {[%clk 0:00:01]}  fxe3 {[%clk 0:00:00]} 36. Kf1 {[%clk 0:00:01]} 1-0


[Site "https://www.chess.com"]

[Event "Titled Tuesday Blitz May 2 Early 2023"]
[White "Pham, Le Thao Nguyen"]
[Black "Sanhueza, Cristian"]
[WhiteFideId "12401226"]
[BlackFideId "116815"]
[WhiteElo "2286"]
[BlackElo "2219"]
[Result "0-1"]
[Round "10"]
[TimeControl "180+2"]
[Date "2023.05.03"]
[WhiteClock "0:00:00"]
[BlackClock "0:00:00"]

1. d4 {[%clk 0:00:01]}  Nf6 {[%clk 0:00:01]} 2. Nf3 {[%clk 0:00:01]}  g6 {[%clk 0:00:01]} 3. g3 {[%clk 0:00:01]}  Bg7 {[%clk 0:00:01]} 4. Bg2 {[%clk 0:00:01]}  O-O {[%clk 0:00:01]} 5. O-O {[%clk 0:00:01]}  d6 {[%clk 0:00:01]} 6. b3 {[%clk 0:00:01]}  Nbd7 {[%clk 0:00:01]} 7. Bb2 {[%clk 0:00:01]}  Re8 {[%clk 0:00:01]} 8. Nbd2 {[%clk 0:00:01]}  e5 {[%clk 0:00:01]} 9. dxe5 {[%clk 0:00:01]}  Ng4 {[%clk 0:00:01]} 10. Nc4 {[%clk 0:00:01]}  Ngxe5 {[%clk 0:00:01]} 11. Nfxe5 {[%clk 0:00:01]}  Nxe5 {[%clk 0:00:01]} 12. Nxe5 {[%clk 0:00:01]}  Bxe5 {[%clk 0:00:01]} 13. Bxe5 {[%clk 0:00:01]}  Rxe5 {[%clk 0:00:01]} 14. e3 {[%clk 0:00:01]}  Rb8 {[%clk 0:00:01]} 15. Qd4 {[%clk 0:00:01]}  Rc5 {[%clk 0:00:01]} 16. c4 {[%clk 0:00:01]}  Be6 {[%clk 0:00:01]} 17. Rfd1 {[%clk 0:00:01]}  Qg5 {[%clk 0:00:01]} 18. Rd2 {[%clk 0:00:01]}  h5 {[%clk 0:00:01]} 19. h4 {[%clk 0:00:01]}  Qe5 {[%clk 0:00:01]} 20. Rad1 {[%clk 0:00:01]}  Bg4 {[%clk 0:00:01]} 21. Rf1 {[%clk 0:00:01]}  a5 {[%clk 0:00:01]} 22. Bd5 {[%clk 0:00:00]}  Kg7 {[%clk 0:00:00]} 23. a4 {[%clk 0:00:00]}  b6 {[%clk 0:00:00]} 24. Qxe5+ {[%clk 0:00:00]}  dxe5 {[%clk 0:00:00]} 25. f3 {[%clk 0:00:00]}  Bh3 {[%clk 0:00:00]} 26. Rfd1 {[%clk 0:00:00]}  Bf5 {[%clk 0:00:00]} 27. f4 {[%clk 0:00:00]}  Bg4 {[%clk 0:00:00]} 28. Rf1 {[%clk 0:00:00]}  c6 {[%clk 0:00:00]} 29. Bg2 {[%clk 0:00:00]}  b5 {[%clk 0:00:00]} 30. cxb5 {[%clk 0:00:00]}  cxb5 {[%clk 0:00:00]} 31. Rd6 {[%clk 0:00:00]}  bxa4 {[%clk 0:00:00]} 32. bxa4 {[%clk 0:00:00]}  Rb2 {[%clk 0:00:00]} 33. Rf2 {[%clk 0:00:00]}  Rc1+ {[%clk 0:00:00]} 34. Bf1 {[%clk 0:00:00]}  Rbb1 {[%clk 0:00:00]} 35. Kg2 {[%clk 0:00:00]}  e4 {[%clk 0:00:00]} 36. f5 {[%clk 0:00:00]}  Bf3+ {[%clk 0:00:00]} 37. Kg1 {[%clk 0:00:00]}  Rd1 {[%clk 0:00:00]} 38. Rc6 {[%clk 0:00:00]}  Rbc1 {[%clk 0:00:00]} 39. f6+ {[%clk 0:00:00]}  Kh6 {[%clk 0:00:00]} 40. Ra6 {[%clk 0:00:00]}  Rc5 {[%clk 0:00:00]} 41. Ra7 {[%clk 0:00:00]}  g5 {[%clk 0:00:00]} 42. Rxf7 {[%clk 0:00:00]}  gxh4 {[%clk 0:00:00]} 43. gxh4 {[%clk 0:00:00]}  Kg6 {[%clk 0:00:00]} 44. Rf8 {[%clk 0:00:00]}  Rf5 {[%clk 0:00:00]} 45. Kh2 {[%clk 0:00:00]}  Rxf6 {[%clk 0:00:00]} 46. Rxf6+ {[%clk 0:00:00]}  Kxf6 {[%clk 0:00:00]} 47. Bh3 {[%clk 0:00:00]}  Rh1+ {[%clk 0:00:00]} 48. Kg3 {[%clk 0:00:00]}  Ke5 {[%clk 0:00:00]} 49. Bg2 {[%clk 0:00:00]}  Rg1 {[%clk 0:00:00]} 50. Kh2 {[%clk 0:00:00]}  Rxg2+ {[%clk 0:00:00]} 51. Rxg2 {[%clk 0:00:00]}  Bxg2 {[%clk 0:00:00]} 52. Kxg2 {[%clk 0:00:00]}  Kd5 {[%clk 0:00:00]} 53. Kg3 {[%clk 0:00:00]}  Kc4 {[%clk 0:00:00]} 54. Kf4 {[%clk 0:00:00]}  Kd3 {[%clk 0:00:00]} 55. Kg5 {[%clk 0:00:00]}  Kxe3 {[%clk 0:00:00]} 56. Kxh5 {[%clk 0:00:00]}  Kf4 {[%clk 0:00:00]} 57. Kg6 {[%clk 0:00:00]}  e3 {[%clk 0:00:00]} 58. h5 {[%clk 0:00:00]}  e2 {[%clk 0:00:00]} 59. h6 {[%clk 0:00:00]}  e1=Q {[%clk 0:00:00]} 60. h7 {[%clk 0:00:00]}  Qe5 {[%clk 0:00:00]} 0-1


[Site "https://www.chess.com"]

[Event "Titled Tuesday Blitz May 2 Early 2023"]
[White "Rodchenkov, Sergey D."]
[Black "Seder, Mohammed"]
[WhiteFideId "4168712"]
[BlackFideId "11505567"]
[WhiteElo "2277"]
[BlackElo "1862"]
[Result "0-1"]
[Round "10"]
[TimeControl "180+2"]
[Date "2023.05.03"]
[WhiteClock "0:00:00"]
[BlackClock "0:00:00"]

1. e4 {[%clk 0:00:01]}  c5 {[%clk 0:00:01]} 2. Nf3 {[%clk 0:00:01]}  Nc6 {[%clk 0:00:01]} 3. d4 {[%clk 0:00:01]}  cxd4 {[%clk 0:00:01]} 4. Nxd4 {[%clk 0:00:01]}  Nf6 {[%clk 0:00:01]} 5. Nc3 {[%clk 0:00:01]}  Nxd4 {[%clk 0:00:01]} 6. Qxd4 {[%clk 0:00:01]}  d6 {[%clk 0:00:01]} 7. Bg5 {[%clk 0:00:01]}  e6 {[%clk 0:00:01]} 8. f4 {[%clk 0:00:01]}  Be7 {[%clk 0:00:01]} 9. O-O-O {[%clk 0:00:01]}  a6 {[%clk 0:00:01]} 10. Kb1 {[%clk 0:00:01]}  O-O {[%clk 0:00:01]} 11. Bxf6 {[%clk 0:00:00]}  Bxf6 {[%clk 0:00:01]} 12. Qxd6 {[%clk 0:00:00]}  Qa5 {[%clk 0:00:01]} 13. e5 {[%clk 0:00:00]}  Rd8 {[%clk 0:00:01]} 14. Qa3 {[%clk 0:00:00]}  Rxd1+ {[%clk 0:00:01]} 15. Nxd1 {[%clk 0:00:00]}  Qe1 {[%clk 0:00:01]} 16. Qd3 {[%clk 0:00:00]}  Be7 {[%clk 0:00:01]} 17. g3 {[%clk 0:00:00]}  Qb4 {[%clk 0:00:00]} 18. Bg2 {[%clk 0:00:00]}  g6 {[%clk 0:00:00]} 19. Nc3 {[%clk 0:00:00]}  Rb8 {[%clk 0:00:00]} 20. a3 {[%clk 0:00:00]}  Qb6 {[%clk 0:00:00]} 21. h4 {[%clk 0:00:00]}  Bxa3 {[%clk 0:00:00]} 22. Na4 {[%clk 0:00:00]}  Qf2 {[%clk 0:00:00]} 23. Qxa3 {[%clk 0:00:00]}  Qxg2 {[%clk 0:00:00]} 24. Rd1 {[%clk 0:00:00]}  Bd7 {[%clk 0:00:00]} 25. Rxd7 {[%clk 0:00:00]}  b5 {[%clk 0:00:00]} 26. Nb6 {[%clk 0:00:00]}  Qg1+ {[%clk 0:00:00]} 27. Ka2 {[%clk 0:00:00]}  Qxb6 {[%clk 0:00:00]} 28. h5 {[%clk 0:00:00]}  Rd8 {[%clk 0:00:00]} 29. Rxd8+ {[%clk 0:00:00]}  Qxd8 {[%clk 0:00:00]} 0-1


[Site "https://www.chess.com"]

[Event "Titled Tuesday Blitz May 2 Early 2023"]
[White "Erzhanov, Arman"]
[Black "Mogirzan, Matei-Valeriu"]
[WhiteFideId "4138821"]
[BlackFideId "1257455"]
[WhiteElo "2138"]
[BlackElo "1733"]
[Result "1-0"]
[Round "10"]
[TimeControl "180+2"]
[Date "2023.05.03"]
[WhiteClock "0:00:00"]
[BlackClock "0:00:00"]

1. e4 {[%clk 0:00:01]}  c5 {[%clk 0:00:01]} 2. Nf3 {[%clk 0:00:01]}  d6 {[%clk 0:00:01]} 3. d4 {[%clk 0:00:01]}  cxd4 {[%clk 0:00:01]} 4. Qxd4 {[%clk 0:00:01]}  Nc6 {[%clk 0:00:01]} 5. Qe3 {[%clk 0:00:01]}  g6 {[%clk 0:00:01]} 6. Be2 {[%clk 0:00:01]}  Bg7 {[%clk 0:00:01]} 7. h3 {[%clk 0:00:01]}  e5 {[%clk 0:00:01]} 8. O-O {[%clk 0:00:01]}  f5 {[%clk 0:00:01]} 9. Bc4 {[%clk 0:00:01]}  Nf6 {[%clk 0:00:01]} 10. Ng5 {[%clk 0:00:01]}  Nd4 {[%clk 0:00:00]} 11. Na3 {[%clk 0:00:01]}  fxe4 {[%clk 0:00:00]} 12. Nf7 {[%clk 0:00:01]}  Qe7 {[%clk 0:00:00]} 13. Nxh8 {[%clk 0:00:01]}  d5 {[%clk 0:00:00]} 14. Bxd5 {[%clk 0:00:01]}  Nxd5 {[%clk 0:00:00]} 15. Qxe4 {[%clk 0:00:01]}  Nf6 {[%clk 0:00:00]} 16. Qh4 {[%clk 0:00:01]}  Bf5 {[%clk 0:00:00]} 17. c3 {[%clk 0:00:01]}  Nc6 {[%clk 0:00:00]} 18. Rd1 {[%clk 0:00:00]}  Bxh8 {[%clk 0:00:00]} 19. Bg5 {[%clk 0:00:00]}  Bg7 {[%clk 0:00:00]} 20. Nb5 {[%clk 0:00:00]}  Rd8 {[%clk 0:00:00]} 21. Qa4 {[%clk 0:00:00]}  a6 {[%clk 0:00:00]} 22. Na7 {[%clk 0:00:00]}  b5 {[%clk 0:00:00]} 23. Nxc6 {[%clk 0:00:00]}  bxa4 {[%clk 0:00:00]} 24. Nxe7 {[%clk 0:00:00]}  Rxd1+ {[%clk 0:00:00]} 25. Rxd1 {[%clk 0:00:00]}  Kxe7 {[%clk 0:00:00]} 26. Rd5 {[%clk 0:00:00]}  h6 {[%clk 0:00:00]} 27. Rxe5+ {[%clk 0:00:00]}  Kd6 {[%clk 0:00:00]} 28. Bf4 {[%clk 0:00:00]}  Nd5 {[%clk 0:00:00]} 29. Rxf5+ {[%clk 0:00:00]}  Nxf4 {[%clk 0:00:00]} 30. Rxf4 {[%clk 0:00:00]}  a3 {[%clk 0:00:00]} 31. bxa3 {[%clk 0:00:00]}  Bxc3 {[%clk 0:00:00]} 32. Rc4 {[%clk 0:00:00]}  Bb2 {[%clk 0:00:00]} 33. Ra4 {[%clk 0:00:00]}  Kc5 {[%clk 0:00:00]} 34. Rxa6 {[%clk 0:00:00]} 1-0


[Site "https://www.chess.com"]